fUST/lending_fUST_20251012
["ID","MTS","AMOUNT","RATE_DAILY","PERIOD"]
[390924054,1760221844616,-472.23,0.00022799,2]
[390924055,1760221844626,-500.0,0.00022799,2]
[390924056,1760221844637,-500.0,0.00022799,2]
[390924057,1760221844647,-500.0,0.00022799,2]
[390924058,1760221844658,-270.9,0.00022799,2]
[390924059,1760221844669,-206.28254252,0.00022799,2]
[390924060,1760221844680,-1045.55,0.00022799,2]
[390924061,1760221844691,-1045.55,0.00022799,2]
[390924062,1760221844702,-1045.55,0.00022799,2]
[390924063,1760221844713,-1045.55,0.00022799,2]
[390924064,1760221844727,-1045.55,0.00022799,2]
[390924065,1760221844738,-1045.55,0.00022799,2]
[390924066,1760221844749,-1045.55,0.00022799,2]
[390924067,1760221844759,-1045.55,0.00022799,2]
[390924068,1760221844773,-1045.55,0.00022799,2]
[390924069,1760221844784,-1045.55,0.00022799,2]
[390924070,1760221844797,-1045.55,0.00022799,2]
[390924071,1760221844809,-1045.55,0.00022799,2]
[390924072,1760221844821,-1045.55,0.00022799,2]
[390924073,1760221844838,-1045.55,0.00022799,2]
[390924074,1760221844849,-1045.55,0.00022799,2]
[390924075,1760221844861,-1045.55,0.00022799,2]
[390924076,1760221844872,-1045.55,0.00022799,2]
[390924077,1760221844883,-1045.55,0.00022799,2]
[390924078,1760221844894,-1045.55,0.00022799,2]
[390924079,1760221844905,-1045.55,0.00022799,2]
[390924080,1760221844916,-1045.55,0.00022799,2]
[390924081,1760221844927,-1045.55,0.00022799,2]
[390924082,1760221844937,-500.0,0.00022799,2]
[390924083,1760221844948,-500.0,0.00022799,2]
[390924084,1760221844959,-474.4,0.00022799,2]
[390924085,1760221844970,-1045.55,0.00022799,2]
[390924086,1760221844980,-1045.77,0.00022799,2]
[390924087,1760221845124,-592.53,0.00022799,2]
[390924088,1760221845138,-592.53,0.00022799,2]
[390924089,1760221845148,-592.53,0.00022799,2]
[390924090,1760221845157,-592.53,0.00022799,2]
[390924091,1760221845168,-592.53,0.00022799,2]
[390924092,1760221845178,-592.53,0.00022799,2]
[390924093,1760221845187,-592.53,0.00022799,2]
[390924094,1760221845197,-592.53,0.00022799,2]
[390924095,1760221845206,-592.53,0.00022799,2]
[390924096,1760221845216,-592.53,0.00022799,2]
[390924097,1760221845226,-500.0,0.00022799,2]
[390924098,1760221845235,-592.53,0.00022799,2]
[390924099,1760221845244,-592.53,0.00022799,2]
[390924100,1760221845253,-592.53,0.00022799,2]
[390924101,1760221845263,-592.53,0.00022799,2]
[390924102,1760221845272,-592.53,0.00022799,2]
[390924103,1760221845281,-592.53,0.00022799,2]
[390924104,1760221845290,-592.53,0.00022799,2]
[390924105,1760221845299,-592.53,0.00022799,2]
[390924106,1760221845311,-592.53,0.00022799,2]
[390924107,1760221845320,-592.53,0.00022799,2]
[390924108,1760221845331,-592.53,0.00022799,2]
[390924109,1760221845341,-592.53,0.00022799,2]
[390924110,1760221845350,-592.53,0.00022799,2]
[390924111,1760221845359,-592.6,0.00022799,2]
[390924112,1760221845368,-500.0,0.00022799,2]
[390924113,1760221845377,-580.21294539,0.00022799,2]
[390924114,1760221845387,-500.0,0.00022799,2]
[390924115,1760221845396,-624.84,0.00022799,2]
[390924116,1760221845405,-500.0,0.00022799,2]
[390924117,1760221845414,-500.0,0.00022799,2]
[390924118,1760221845423,-500.0,0.00022799,2]
[390924119,1760221845432,-314.54,0.00022799,2]
[390924120,1760221845441,-502.4924119,0.00022799,2]
[390924121,1760221845450,-500.0,0.00022799,2]
[390924122,1760221845459,-500.0,0.00022799,2]
[390924123,1760221845468,-500.0,0.00022799,2]
[390924124,1760221845478,-500.0,0.00022799,2]
[390924125,1760221845487,-500.0,0.00022799,2]
[390924126,1760221845496,-500.0,0.00022799,2]
[390924127,1760221845505,-500.0,0.00022799,2]
[390924128,1760221845515,-500.0,0.00022799,2]
[390924129,1760221845524,-469.2,0.00022799,2]
[390924130,1760221845533,-554.91558932,0.00022799,2]
[390924131,1760221845542,-500.0,0.00022799,2]
[390924132,1760221845551,-500.0,0.00022799,2]
[390924133,1760221845561,-500.0,0.00022799,2]
[390924134,1760221845570,-1396.59,0.00022799,2]
[390924135,1760221845583,-1396.59,0.00022799,2]
[390924136,1760221845593,-500.0,0.00022799,2]
[390924137,1760221845602,-1396.59,0.00022799,2]
[390924138,1760221845611,-1396.59,0.00022799,2]
[390924139,1760221845621,-500.0,0.00022799,2]
[390924140,1760221845630,-1396.59,0.00022799,2]
[390924141,1760221845639,-206.1737577,0.00022799,2]
[390924142,1760221845649,-1396.59,0.00022799,2]
[390924143,1760221845659,-1396.59,0.00022799,2]
[390924144,1760221845668,-1396.59,0.00022799,2]
[390924145,1760221845678,-1396.59,0.00022799,2]
[390924146,1760221845688,-1396.59,0.00022799,2]
[390924147,1760221845697,-1396.59,0.00022799,2]
[390924148,1760221845706,-1396.59,0.00022799,2]
[390924149,1760221845717,-1396.59,0.00022799,2]
[390924151,1760221845729,-1396.59,0.00022799,2]
[390924152,1760221845738,-1396.59,0.00022799,2]
[390924153,1760221845748,-1396.59,0.00022799,2]
[390924154,1760221845759,-1396.59,0.00022799,2]
[390924155,1760221845769,-1396.59,0.00022799,2]
[390924156,1760221845778,-1396.59,0.00022799,2]
[390924157,1760221845787,-1396.59,0.00022799,2]
[390924158,1760221845798,-1396.59,0.00022799,2]
[390924160,1760221845807,-1396.59,0.00022799,2]
[390924162,1760221845816,-1396.59,0.00022799,2]
[390924164,1760221845827,-1396.67076321,0.00022799,2]
[390924165,1760221845836,-500.0,0.00022799,2]
[390924167,1760221845846,-500.0,0.00022799,2]
[390924169,1760221845854,-599.14,0.00022799,2]
[390924171,1760221845864,-500.0,0.00022799,2]
[390924172,1760221845873,-500.0,0.00022799,2]
[390924173,1760221845882,-500.0,0.00022799,2]
[390924174,1760221845891,-301.84,0.00022799,2]
[390924175,1760221845900,-500.0,0.00022799,2]
[390924176,1760221845910,-500.0,0.00022799,2]
[390924178,1760221845919,-500.0,0.00022799,2]
[390924179,1760221845928,-500.0,0.00022799,2]
[390924180,1760221845937,-500.0,0.00022799,2]
[390924182,1760221845947,-500.0,0.00022799,2]
[390924184,1760221845956,-500.0,0.00022799,2]
[390924185,1760221845965,-500.0,0.00022799,2]
[390924186,1760221845974,-500.0,0.00022799,2]
[390924187,1760221845984,-500.0,0.00022799,2]
[390924189,1760221845993,-500.0,0.00022799,2]
[390924191,1760221846002,-500.0,0.00022799,2]
[390924193,1760221846011,-532.29,0.00022799,2]
[390924194,1760221846021,-500.0,0.00022799,2]
[390924195,1760221846030,-500.0,0.00022799,2]
[390924196,1760221846039,-500.0,0.00022799,2]
[390924197,1760221846048,-500.0,0.00022799,2]
[390924198,1760221846058,-500.0,0.00022799,2]
[390924199,1760221846067,-500.0,0.00022799,2]
[390924201,1760221846078,-500.0,0.00022799,2]
[390924203,1760221846087,-500.0,0.00022799,2]
[390924205,1760221846096,-500.0,0.00022799,2]
[390924206,1760221846106,-500.0,0.00022799,2]
[390924207,1760221846115,-500.0,0.00022799,2]
[390924208,1760221846125,-500.0,0.00022799,2]
[390924209,1760221846134,-500.0,0.00022799,2]
[390924210,1760221846143,-500.0,0.00022799,2]
[390924211,1760221846153,-500.0,0.00022799,2]
[390924212,1760221846162,-500.0,0.00022799,2]
[390924213,1760221846171,-500.0,0.00022799,2]
[390924214,1760221846180,-500.0,0.00022799,2]
[390924215,1760221846190,-500.0,0.00022799,2]
[390924216,1760221846199,-500.0,0.00022799,2]
[390924217,1760221846208,-500.0,0.00022799,2]
[390924218,1760221846217,-500.0,0.00022799,2]
[390924219,1760221846226,-500.0,0.00022799,2]
[390924220,1760221846235,-500.0,0.00022799,2]
[390924221,1760221846244,-500.0,0.00022799,2]
[390924222,1760221846254,-500.0,0.00022799,2]
[390924223,1760221846264,-500.0,0.00022799,2]
[390924224,1760221846273,-500.0,0.00022799,2]
[390924225,1760221846281,-500.0,0.00022799,2]
[390924226,1760221846291,-500.0,0.00022799,2]
[390924227,1760221846300,-500.0,0.00022799,2]
[390924228,1760221846308,-401.9010325,0.00022799,2]
[390924229,1760221846318,-500.0,0.00022799,2]
[390924230,1760221846327,-500.0,0.00022799,2]
[390924231,1760221846336,-500.0,0.00022799,2]
[390924232,1760221846346,-500.0,0.00022799,2]
[390924234,1760221846355,-500.0,0.00022799,2]
[390924236,1760221846364,-500.0,0.00022799,2]
[390924238,1760221846374,-227204.18801175,0.000228,2]
[390924240,1760221846383,-171.462379,0.000228,10]
[390924242,1760221846392,-967.3914282,0.00022803,2]
[390924244,1760221846402,-500.0,0.00022871,2]
[390924246,1760221846411,-334.26,0.00022871,2]
[390924247,1760221846420,-500.0,0.00022872,2]
[390924248,1760221846429,-500.0,0.00022872,2]
[390924249,1760221846439,-272.87,0.00022872,2]
[390924250,1760221846449,-500.0,0.00022872,2]
[390924251,1760221846458,-500.0,0.00022872,2]
[390924252,1760221846468,-500.0,0.00022872,2]
[390924253,1760221846477,-500.0,0.00022872,2]
[390924254,1760221846487,-500.0,0.00022872,2]
[390924255,1760221846496,-588.96,0.00022872,2]
[390924256,1760221846505,-500.0,0.00022872,2]
[390924257,1760221846515,-500.0,0.00022872,2]
[390924258,1760221846524,-213.72,0.00022872,2]
[390924259,1760221846533,-500.0,0.00022872,2]
[390924260,1760221846543,-500.0,0.00022872,2]
[390924261,1760221846552,-500.0,0.00022872,2]
[390924262,1760221846561,-173.76,0.00022872,2]
[390924263,1760221846570,-505.16,0.00022872,2]
[390924264,1760221846579,-500.0,0.00022872,2]
[390924265,1760221846588,-500.0,0.00022872,2]
[390924266,1760221846597,-500.0,0.00022872,2]
[390924267,1760221846606,-500.0,0.00022872,2]
[390924268,1760221846615,-500.0,0.00022872,2]
[390924269,1760221846624,-500.0,0.00022872,2]
[390924270,1760221846633,-500.0,0.00022872,2]
[390924271,1760221846642,-221.14,0.00022872,2]
[390924272,1760221846650,-500.0,0.00022872,2]
[390924273,1760221846659,-500.0,0.00022872,2]
[390924274,1760221846668,-500.0,0.00022872,2]
[390924275,1760221846677,-500.0,0.00022872,2]
[390924276,1760221846685,-500.0,0.00022872,2]
[390924277,1760221846694,-500.0,0.00022872,2]
[390924278,1760221846703,-500.0,0.00022872,2]
[390924279,1760221846712,-500.0,0.00022872,2]
[390924280,1760221846722,-500.0,0.00022872,2]
[390924281,1760221846734,-500.0,0.00022872,2]
[390924282,1760221846742,-500.0,0.00022872,2]
[390924283,1760221846751,-500.0,0.00022872,2]
[390924284,1760221846761,-280.44,0.00022872,2]
[390924285,1760221846770,-500.0,0.00022872,2]
[390924286,1760221846779,-500.0,0.00022872,2]
[390924287,1760221846789,-500.0,0.00022872,2]
[390924288,1760221846801,-500.0,0.00022872,2]
[390924289,1760221846811,-599.44,0.00022872,2]
[390924290,1760221846820,-500.0,0.00022872,2]
[390924291,1760221846834,-500.0,0.00022872,2]
[390924292,1760221846843,-211.81,0.00022872,2]
[390924293,1760221846852,-500.0,0.00022872,2]
[390924294,1760221846863,-500.0,0.00022872,2]
[390924295,1760221846872,-500.0,0.00022872,2]
[390924296,1760221846882,-533.05,0.00022872,2]
[390924297,1760221846891,-500.0,0.00022872,2]
[390924298,1760221846900,-500.0,0.00022872,2]
[390924299,1760221846910,-552.84,0.00022872,2]
[390924300,1760221846919,-500.0,0.00022872,2]
[390924301,1760221846929,-500.0,0.00022872,2]
[390924302,1760221846938,-500.0,0.00022873,2]
[390924303,1760221846947,-501.64552582,0.000229,2]
[390924304,1760221846956,-500.0,0.000229,2]
[390924305,1760221846966,-500.0,0.000229,2]
[390924306,1760221846976,-500.0,0.000229,2]
[390924307,1760221846985,-500.0,0.000229,2]
[390924308,1760221846995,-500.0,0.000229,2]
[390924309,1760221847005,-500.0,0.000229,2]
[390924310,1760221847014,-500.0,0.000229,2]
[390924311,1760221847024,-500.0,0.000229,2]
[390924312,1760221847035,-500.0,0.000229,2]
[390924313,1760221847044,-500.0,0.000229,2]
[390924314,1760221847053,-500.0,0.000229,2]
[390924315,1760221847062,-500.0,0.000229,2]
[390924316,1760221847072,-500.0,0.000229,2]
[390924317,1760221847083,-418.24267432,0.000229,2]
[390924318,1760221847092,-1000.0,0.000229,2]
[390924319,1760221847102,-366.34027595,0.000229,2]
[390924320,1760221847115,-500.0,0.000229,2]
[390924321,1760221847125,-500.0,0.000229,2]
[390924322,1760221847133,-500.0,0.000229,2]
[390924323,1760221847143,-500.0,0.000229,2]
[390924324,1760221847153,-500.0,0.000229,2]
[390924325,1760221847162,-156.92,0.000229,2]
[390924326,1760221847172,-641.94,0.000229,2]
[390924327,1760221847181,-500.0,0.000229,2]
[390924328,1760221847191,-500.0,0.000229,2]
[390924329,1760221847202,-500.0,0.000229,2]
[390924330,1760221847212,-500.0,0.000229,2]
[390924331,1760221847223,-500.0,0.000229,2]
[390924332,1760221847233,-500.0,0.000229,2]
[390924333,1760221847242,-500.0,0.000229,2]
[390924334,1760221847252,-270.63537503,0.000229,2]
[390924335,1760221847262,-494.28864271,0.000229,2]
[390924336,1760221847271,-500.0,0.000229,2]
[390924337,1760221847281,-500.0,0.000229,2]
[390924338,1760221847290,-500.0,0.000229,2]
[390924339,1760221847299,-500.0,0.000229,2]
[390924340,1760221847309,-500.0,0.000229,2]
[390924341,1760221847319,-500.0,0.000229,2]
[390924342,1760221847330,-304.45,0.000229,2]
[390924343,1760221847339,-500.0,0.000229,2]
[390924344,1760221847349,-500.0,0.000229,2]
[390924345,1760221847358,-500.0,0.000229,2]
[390924346,1760221847367,-500.0,0.000229,2]
[390924347,1760221847377,-500.0,0.000229,2]
[390924348,1760221847386,-500.0,0.000229,2]
[390924349,1760221847395,-500.0,0.000229,2]
[390924350,1760221847405,-500.0,0.000229,2]
[390924351,1760221847414,-500.0,0.000229,2]
[390924352,1760221847423,-208.03188443,0.000229,2]
[390924353,1760221847432,-619.23,0.000229,2]
[390924354,1760221847441,-500.0,0.000229,2]
[390924355,1760221847450,-500.0,0.000229,2]
[390924356,1760221847459,-500.0,0.000229,2]
[390924357,1760221847468,-500.0,0.000229,2]
[390924358,1760221847477,-500.0,0.000229,2]
[390924359,1760221847487,-271.3,0.000229,2]
[390924360,1760221847496,-500.0,0.000229,2]
[390924361,1760221847505,-500.0,0.000229,2]
[390924362,1760221847514,-500.0,0.000229,2]
[390924363,1760221847524,-500.0,0.000229,2]
[390924364,1760221847533,-500.0,0.000229,2]
[390924365,1760221847542,-500.0,0.000229,2]
[390924366,1760221847551,-500.0,0.000229,2]
[390924367,1760221847560,-199.17,0.000229,2]
[390924368,1760221847569,-604.58,0.000229,2]
[390924369,1760221847579,-500.0,0.000229,2]
[390924370,1760221847588,-500.0,0.000229,2]
[390924371,1760221847597,-500.0,0.000229,2]
[390924372,1760221847607,-500.0,0.000229,2]
[390924373,1760221847616,-500.0,0.000229,2]
[390924374,1760221847626,-423.16,0.000229,2]
[390924375,1760221847636,-500.0,0.000229,2]
[390924376,1760221847645,-500.0,0.000229,2]
[390924377,1760221847656,-500.0,0.000229,2]
[390924378,1760221847666,-500.0,0.000229,2]
[390924379,1760221847675,-357.11,0.000229,2]
[390924380,1760221847684,-500.0,0.000229,2]
[390924381,1760221847694,-184.96598251,0.000229,2]
[390924382,1760221847703,-500.0,0.000229,2]
[390924383,1760221847712,-283.95,0.000229,2]
[390924384,1760221847725,-500.0,0.00023063,5]
[390924385,1760221847735,-172.5,0.00023299,2]
[390924386,1760221847839,-600.0,0.00023356,20]
[390924387,1760221847849,-300.0,0.00023357,20]
[390924388,1760221847858,-300.0,0.00023357,20]
[390924389,1760221847867,-300.0,0.00023357,20]
[390924390,1760221847876,-300.0,0.00023357,20]
[390924391,1760221847886,-300.0,0.00023357,20]
[390924392,1760221847895,-300.0,0.00023357,20]
[390924393,1760221847904,-300.0,0.00023357,20]
[390924394,1760221847913,-300.0,0.00023357,20]
[390924395,1760221847922,-300.0,0.00023357,20]
[390924396,1760221847931,-300.0,0.00023357,20]
[390924397,1760221847941,-300.0,0.00023357,20]
[390924398,1760221847950,-300.0,0.00023357,20]
[390924399,1760221847960,-300.0,0.00023357,20]
[390924400,1760221847969,-300.0,0.00023357,20]
[390924401,1760221847978,-300.0,0.00023357,20]
[390924402,1760221847987,-500.0,0.00023421,2]
[390924403,1760221847997,-195.0,0.00023899,2]
[390924404,1760221848006,-192.54865383,0.00024004,2]
[390924405,1760221848016,-150.0,0.00024116,2]
[390924406,1760221848026,-4168.7483825,0.00024245,2]
[390924407,1760221848035,-664.86741349,0.00024252,2]
[390924408,1760221848045,-217.5,0.00024499,2]
[390924409,1760221848055,-930.1734942,0.0002457,2]
[390924410,1760221848064,-151.0,0.000247,8]
[390924411,1760221848074,-420.0,0.00024741,2]
[390924412,1760221848083,-36514.6894102,0.000248,2]
[390924413,1760221848092,-1740.99199513,0.000248,4]
[390924414,1760221848101,-18603.8837,0.00024818,2]
[390924415,1760221848110,-1631.0,0.00024856,2]
[390924416,1760221848120,-270.183,0.00024884,8]
[390924417,1760221848130,-190.82420959,0.00024884,8]
[390924418,1760221848140,-540780.297698,0.000249,2]
[390924419,1760221848150,-5589.09732955,0.000249,2]
[390924420,1760221848159,-410.4356376,0.00024904,2]
[390924421,1760221848168,-189.7226975,0.00024904,2]
[390924422,1760221848177,-189.7226975,0.00024904,2]
[390924423,1760221848186,-189.7226975,0.00024904,2]
[390924424,1760221848196,-500.0,0.00024973,2]
[390924425,1760221848206,-256921.75358359,0.00025,2]
[390924426,1760221848446,-500.0,0.00022787,2]
[390924427,1760221848457,-520.2,0.00022787,2]
[390924428,1760221848466,-36.17817991,0.00022787,2]
[390924429,1760221848477,-302.0,0.00022787,2]
[390924430,1760221848489,-1398.66182009,0.00022787,2]
[390924431,1760221848499,-1736.84,0.00022787,2]
[390924432,1760221848509,-1736.84,0.00022787,2]
[390924433,1760221848518,-1736.84,0.00022787,2]
[390924434,1760221848527,-1736.84,0.00022787,2]
[390924435,1760221848537,-1736.84,0.00022787,2]
[390924436,1760221848546,-500.0,0.00022788,2]
[390924437,1760221848555,-468.66256353,0.00022788,2]
[390924438,1760221863603,5000.0,0.00022589,2]
[390924439,1760221863972,150.0,0.0001978,2]
[390924440,1760221864459,150.0,0.00021579,2]
[390924441,1760221936150,4700.01,0.00022589,2]
[390924442,1760221936181,299.99,0.00022589,2]
[390924443,1760221939031,150.0,0.00019768,2]
[390924444,1760221939453,150.0,0.00021565,2]
[390924451,1760222011832,150.0,0.00019763,2]
[390924452,1760222012280,150.0,0.0002156,2]
[390924465,1760222061456,1521.31416,0.00021793,2]
[390924479,1760222086572,150.0,0.00020592,2]
[390924480,1760222086980,150.0,0.00022464,2]
[390924509,1760222160637,150.0,0.00020658,2]
[390924510,1760222161650,150.0,0.00022537,2]
[390924549,1760222236026,150.0,0.00020238,2]
[390924550,1760222236442,150.0,0.00022078,2]
[390924584,1760222309582,150.0,0.00019807,2]
[390924585,1760222310001,150.0,0.00021607,2]
[390924588,1760222360908,151.19167354,0.00022587,2]
[390924589,1760222383869,150.0,0.00020065,2]
[390924590,1760222384285,150.0,0.0002189,2]
[390924598,1760222453357,150.0,0.00020069,2]
[390924599,1760222453767,150.0,0.00021894,2]
[390924603,1760222481062,666.0,0.00021687,2]
[390924606,1760222513784,3628.29323924,0.00022589,2]
[390924607,1760222520395,150.0,0.00020006,2]
[390924608,1760222520803,150.0,0.00021825,2]
[390924609,1760222521599,3129.79008008,0.00022589,2]
[390924647,1760222585676,150.0,0.00020138,2]
[390924648,1760222586091,150.0,0.00021969,2]
[390924673,1760222651283,150.0,0.00020752,2]
[390924675,1760222658296,174.73500714,0.00022588,2]
[390924676,1760222658321,220.65909375,0.00022588,2]
[390924704,1760222718273,150.0,0.00020316,2]
[390924705,1760222718835,150.0,0.00022162,2]
[390924715,1760222744400,552.4404485,0.00022588,2]
[390924724,1760222781764,1500.0,0.00015,2]
[390924758,1760222877046,-150.0,0.000226,2]
[390924759,1760222877091,-300.0,0.00022672,2]
[390924760,1760222877132,-261.0,0.00022672,2]
[390924761,1760222877169,-1200.0,0.00022672,2]
[390924762,1760222877212,-300.0,0.00022672,2]
[390924763,1760222877251,-500.0,0.00022673,2]
[390924764,1760222877291,-500.0,0.00022673,2]
[390924765,1760222877330,-500.0,0.00022673,2]
[390924766,1760222877368,-500.0,0.00022673,2]
[390924767,1760222877408,-500.0,0.00022673,2]
[390924768,1760222877449,-78.01,0.00022673,2]
[390924769,1760222879000,-421.99,0.00022673,2]
[390924770,1760222879031,-500.0,0.00022673,2]
[390924771,1760222879064,-583.3600727,0.00022673,2]
[390924772,1760222879094,-500.0,0.00022673,2]
[390924773,1760222879124,-500.0,0.00022673,2]
[390924774,1760222879153,-500.0,0.00022673,2]
[390924775,1760222879185,-500.0,0.00022673,2]
[390924776,1760222879219,-435.0189446,0.00022684,2]
[390924777,1760222879249,-500.0,0.00022685,2]
[390924778,1760222879279,-500.0,0.00022685,2]
[390924779,1760222881056,-208.01,0.00022685,2]
[390924780,1760222881089,-1292.68,0.00022685,2]
[390924781,1760222881122,-1292.68,0.00022685,2]
[390924782,1760222881155,-1292.68,0.00022685,2]
[390924783,1760222881188,-535.23,0.00022685,2]
[390924784,1760222883213,-300.0,0.00022672,2]
[390924785,1760222883246,-757.45,0.00022685,2]
[390924786,1760222883278,-1292.68,0.00022685,2]
[390924787,1760222883309,-1292.68,0.00022685,2]
[390924788,1760222883340,-1292.68,0.00022685,2]
[390924790,1760222885217,-1292.68,0.00022685,2]
[390924791,1760222885249,-1292.68,0.00022685,2]
[390924792,1760222885282,-1292.68,0.00022685,2]
[390924793,1760222885315,-951.25,0.00022685,2]
[390924795,1760222890329,-341.43,0.00022685,2]
[390924796,1760222890362,-1292.68,0.00022685,2]
[390924797,1760222890396,-1292.68,0.00022685,2]
[390924798,1760222890430,-1292.68,0.00022685,2]
[390924799,1760222890463,-268.39,0.00022685,2]
[390924802,1760222915250,305.58473976,0.0002258,2]
[390924805,1760222919949,263.59606726,0.00022586,2]
[390924810,1760222920456,-956.35,0.00022684,2]
[390924811,1760222920487,-956.35,0.00022684,2]
[390924812,1760222920518,-956.35,0.00022684,2]
[390924813,1760222920550,-956.35,0.00022684,2]
[390924814,1760222920588,-956.35,0.00022684,2]
[390924815,1760222920892,-956.35,0.00022684,2]
[390924816,1760222920922,-956.35,0.00022684,2]
[390924817,1760222920951,-183.15659996,0.00022684,2]
[390924818,1760222920984,-305.22705599,0.00022684,2]
[390924819,1760222921014,-405.95137201,0.00022685,2]
[390924820,1760222921048,-1024.29,0.00022685,2]
[390924821,1760222921080,-1044.67994408,0.00022685,2]
[390924822,1760222921164,-248.00005592,0.00022685,2]
[390924823,1760222921195,-1292.68,0.00022685,2]
[390924824,1760222921228,-1292.68,0.00022685,2]
[390924825,1760222921260,-1292.68,0.00022685,2]
[390924826,1760222921292,-455.24988816,0.00022685,2]
[390924827,1760222921339,-956.35,0.00022684,2]
[390924828,1760222921370,-837.43011184,0.00022685,2]
[390924829,1760222921402,-1292.68,0.00022685,2]
[390924830,1760222921432,-1292.68,0.00022685,2]
[390924832,1760222922669,-500.0,0.00022684,2]
[390924833,1760222922702,-956.35,0.00022684,2]
[390924834,1760222922735,-956.35,0.00022684,2]
[390924835,1760222922767,-956.35,0.00022684,2]
[390924836,1760222922799,-956.35,0.00022684,2]
[390924837,1760222922832,-392.86,0.00022684,2]
[390924838,1760222923024,-563.49,0.00022684,2]
[390924839,1760222923058,-956.35,0.00022684,2]
[390924840,1760222923091,-956.35,0.00022684,2]
[390924841,1760222923125,-956.35,0.00022684,2]
[390924842,1760222923158,-956.35,0.00022684,2]
[390924846,1760222930534,-263.59606725,0.00022637,2]
[390924847,1760222930612,-956.35,0.00022684,2]
[390924848,1760222930679,-956.35,0.00022684,2]
[390924849,1760222930740,-956.35,0.00022684,2]
[390924850,1760222930803,-956.35,0.00022684,2]
[390924851,1760222930872,-865.6678655,0.00022684,2]
[390924852,1760222931119,-90.6821345,0.00022684,2]
[390924853,1760222931179,-956.35,0.00022684,2]
[390924854,1760222931240,-956.36,0.00022684,2]
[390924855,1760222931299,-1292.68,0.00022685,2]
[390924856,1760222931355,-1292.8,0.00022685,2]
[390924857,1760222931588,-3440.46,0.00022685,2]
[390924861,1760222936600,-500.0,0.00022684,2]
[390924862,1760222936676,-295.31627542,0.00022684,2]
[390924863,1760222936740,-3440.46,0.00022685,2]
[390924866,1760222937158,-3440.46,0.00022685,2]
[390924867,1760222937356,-3440.46,0.00022685,2]
[390924876,1760222974258,150.0,0.00020349,2]
[390924877,1760222974661,150.0,0.00022199,2]
[390924947,1760222983425,454.3182954,0.00022088,8]
[390924951,1760223031211,1000.0,0.00021685,2]
[390925505,1760223038286,-300.0,0.00022683,2]
[390925507,1760223038295,-300.0,0.00022683,2]
[390925509,1760223038305,-300.0,0.00022683,2]
[390925510,1760223038314,-300.0,0.00022683,2]
[390925513,1760223038323,-300.0,0.00022683,2]
[390925516,1760223038332,-1200.0,0.00022683,2]
[390925517,1760223038342,-500.0,0.00022683,2]